bitfinex/quotes_SOLUSD_20250308
["timestamp","ask_amount","ask_price","bid_price","bid_amount"]
[1741445141208,25.89815186,138.01,138.0,0.033007]
[1741445141514,33.14395186,138.01,138.0,0.033007]
[1741445142730,27.73123556,138.01,138.0,0.033007]
[1741445143230,33.14411661,138.01,138.0,0.033007]
[1741445147110,35.14411661,138.01,138.0,0.033007]
[1741445147427,35.14411661,138.01,138.0,7e-06]
[1741445147428,117.87751661,138.01,138.0,7e-06]
[1741445148231,136.52716547,138.01,138.0,7e-06]
[1741445149548,134.52716547,138.01,137.92,26.74988099]
[1741445149716,0.14216157,137.97,137.92,26.74988099]
[1741445150232,0.14216157,137.96,137.92,26.74988099]
[1741445150735,0.14216157,137.96,137.94,13.80327399]
[1741445150929,5.55504262,137.95,137.94,32.45292285]
[1741445151611,5.55504262,137.95,137.94,39.70242285]
[1741445152029,5.55504262,137.95,137.94,25.89914886]
[1741445152531,5.55504262,137.95,137.94,39.70242285]
[1741445153116,0.14216157,137.95,137.94,39.70242285]
[1741445153532,13.80327399,137.98,137.93,25.89954886]
[1741445153735,0.14216157,137.97,137.93,25.89954886]
[1741445154245,5.54658494,137.97,137.93,25.89954886]
[1741445154432,5.54658494,137.97,137.93,39.70282285]
[1741445154926,5.54658494,137.97,137.92,5.696107]
[1741445154927,0.14216157,137.93,137.92,5.696107]
[1741445155509,0.14216157,137.95,137.92,5.696107]
[1741445155751,13.94543556,137.95,137.92,5.696107]
[1741445156029,6.68216157,137.95,137.92,5.696107]
[1741445156825,0.14216157,137.93,137.92,5.696107]
[1741445157216,0.14216157,137.93,137.89,6.0178]
[1741445157433,21.74002046,137.93,137.89,6.0178]
[1741445157941,21.74002046,137.93,137.91,0.033]
[1741445158237,0.14216157,137.91,137.87,0.033]
[1741445158629,0.14216157,137.89,137.87,0.033]
[1741445160719,5.53888141,137.88,137.87,0.033]
[1741445162320,0.14216157,137.87,137.86,0.033]
[1741445162525,71.74002046,137.87,137.81,6.0178]
[1741445162727,21.74002046,137.85,137.81,6.0178]
[1741445163045,28.30002046,137.85,137.81,6.0178]
[1741445163521,6.70216157,137.85,137.81,6.0178]
[1741445163842,6.70216157,137.85,137.82,21.59785889]
[1741445164140,6.70216157,137.85,137.83,21.59785889]
[1741445164345,5.53888141,137.84,137.83,21.59785889]
[1741445164526,0.14216157,137.83,137.81,6.0178]
[1741445165447,0.14216157,137.84,137.81,6.0178]
[1741445166225,0.14216157,137.84,137.81,27.61565889]
[1741445166545,0.14216157,137.84,137.81,6.0178]
[1741445166753,0.14216157,137.84,137.81,27.61565889]
[1741445167423,0.14216157,137.84,137.81,6.0178]
[1741445169129,0.14216157,137.84,137.81,27.61565889]
[1741445169336,0.14216157,137.84,137.81,34.87175889]
[1741445169634,0.14216157,137.84,137.81,27.61565889]
[1741445169948,0.14216157,137.84,137.81,34.87185889]
[1741445170151,0.14216157,137.87,137.83,21.59785889]
[1741445170345,0.14216157,137.87,137.84,21.59785889]
[1741445170553,0.14216157,137.87,137.85,21.59785889]
[1741445170847,0.14216157,137.87,137.84,21.59785889]
[1741445171044,0.14216157,137.87,137.83,21.59785889]
[1741445171639,0.14216157,137.88,137.84,21.59785889]
[1741445172540,0.14216157,137.88,137.83,145.14750775]
[1741445173237,0.14216157,137.88,137.84,7.2547]
[1741445174066,0.14216157,137.88,137.85,40.24750775]
[1741445174402,0.14216157,137.88,137.86,21.59785889]
[1741445174533,0.14216157,137.88,137.85,21.59785889]
[1741445174868,0.14216157,137.88,137.84,133.75255889]
[1741445176166,7.39486157,137.88,137.84,126.49785889]
[1741445176468,0.14216157,137.88,137.84,126.49785889]
[1741445177169,0.14216157,137.88,137.84,133.75255889]
[1741445177665,0.14216157,137.88,137.84,28.85255889]
[1741445178037,7.39486157,137.88,137.84,21.59785889]
[1741445178380,0.14216157,137.88,137.84,21.59785889]
[1741445179360,0.14216157,137.88,137.84,13.83313665]
[1741445179970,0.14216157,137.88,137.83,13.83313665]
[1741445180195,7.39506157,137.88,137.82,18.64964886]
[1741445180386,0.14216157,137.86,137.82,18.64964886]
[1741445180874,13.97529822,137.86,137.81,6.0508]
[1741445181673,7.2542,137.85,137.81,6.0508]
[1741445181855,0.14216157,137.84,137.81,6.0508]
[1741445183078,7.39696157,137.84,137.81,0.033]
[1741445183277,0.14216157,137.85,137.81,0.033]
[1741445184076,13.97529822,137.85,137.81,0.033]
[1741445184970,0.14216157,137.83,137.81,0.033]
[1741445185377,0.14216157,137.84,137.81,0.033]
[1741445188455,13.97529822,137.84,137.81,0.033]
[1741445188961,13.97529822,137.85,137.81,0.033]
[1741445189979,0.14216157,137.83,137.81,0.033]
[1741445190179,0.14216157,137.83,137.81,13.86613665]
[1741445190377,0.14216157,137.83,137.8,13.83313665]
[1741445190769,7.39756157,137.83,137.79,13.83313665]
[1741445190967,0.14216157,137.83,137.79,13.83313665]
[1741445191371,0.14216157,137.83,137.8,13.83313665]
[1741445191572,21.22999822,137.84,137.79,13.83313665]
[1741445191773,27.78999822,137.84,137.79,13.83313665]
[1741445192175,27.78999822,137.84,137.78,13.7487]
[1741445192376,27.78999822,137.84,137.79,13.83313665]
[1741445192782,0.14216157,137.82,137.79,13.83313665]
[1741445193471,0.14216157,137.82,137.81,0.033]
[1741445194082,5.51970034,137.82,137.81,0.033]
[1741445195169,19.35283699,137.82,137.81,0.033]
[1741445195401,26.60863699,137.82,137.81,0.033]
[1741445195575,51.04930372,137.82,137.81,0.033]
[1741445196295,0.14216157,137.79,137.78,0.057]
[1741445196592,20.53529822,137.79,137.78,0.057]
[1741445196996,27.79269822,137.79,137.78,0.057]
[1741445197206,48.07724708,137.79,137.78,0.057]
[1741445197398,110.62759822,137.79,137.78,0.057]
[1741445197895,116.00513699,137.79,137.78,0.057]
[1741445201884,12.07970034,137.79,137.78,0.057]
[1741445202081,5.51970034,137.79,137.78,0.057]
[1741445202490,19.35283699,137.79,137.78,0.057]
[1741445203201,26.61023699,137.79,137.78,0.057]
[1741445203588,19.35283699,137.79,137.78,0.057]
[1741445204374,26.61023699,137.79,137.78,0.057]
[1741445204988,45.25988585,137.79,137.78,0.057]
[1741445205591,48.89988585,137.79,137.78,0.057]
[1741445208199,68.79181043,137.77,137.76,0.7325431]
[1741445208384,137.95749368,137.77,137.76,0.7325431]
[1741445208575,82.62494708,137.77,137.76,0.7325431]
[1741445209012,69.35283699,137.77,137.76,0.7325431]
[1741445209582,0.14216157,137.74,137.67,7.2965]
[1741445209781,0.14216157,137.7,137.67,7.2965]
[1741445210091,0.14216157,137.7,137.67,0.033]
[1741445210681,0.14216157,137.71,137.67,13.86613665]
[1741445211088,13.97529822,137.71,137.66,21.09733665]
[1741445211289,13.97529822,137.69,137.66,2.1200419]
[1741445211943,0.14216157,137.69,137.66,2.1200419]
[1741445212896,13.97529822,137.69,137.66,2.1200419]
[1741445214009,0.14216157,137.71,137.67,13.83313665]
[1741445214196,6.72216157,137.71,137.66,23.21727855]
[1741445214382,20.55529822,137.71,137.66,23.21727855]
[1741445214583,0.14216157,137.69,137.66,2.1200419]
[1741445217008,0.14216157,137.68,137.66,2.1530419]
[1741445217209,13.97529822,137.68,137.66,2.1530419]
[1741445217390,13.97529822,137.67,137.66,2.1530419]
[1741445218014,0.14216157,137.67,137.66,2.1530419]
[1741445218697,0.14216157,137.67,137.66,9.4172419]
[1741445218892,50.14216157,137.67,137.66,2.1530419]
[1741445219095,13.97529822,137.67,137.66,2.1530419]
[1741445219290,0.14216157,137.67,137.66,2.1530419]
[1741445219819,71.23899822,137.67,137.66,2.1530419]
[1741445220016,89.88864708,137.67,137.66,2.1530419]
[1741445220220,71.23899822,137.67,137.66,2.1530419]
[1741445220398,0.14216157,137.67,137.66,2.1530419]
[1741445222014,5.50575642,137.67,137.66,2.1530419]
[1741445222909,0.14216157,137.67,137.66,2.1530419]
[1741445223497,79.08800175,137.67,137.66,2.1530419]
[1741445223907,97.73765061,137.67,137.66,2.1530419]
[1741445225509,103.09768796,137.67,137.66,2.1530419]
[1741445225999,84.4480391,137.67,137.66,2.1530419]
[1741445226199,0.14216157,137.66,137.65,0.01383347]
[1741445226411,21.82430175,137.66,137.65,0.01383347]
[1741445226599,29.08850175,137.66,137.65,0.01383347]
[1741445228327,5.50219892,137.66,137.65,0.01383347]
[1741445229232,5.50219892,137.66,137.65,23.29727365]
[1741445229899,5.50219892,137.66,137.65,1.61513347]
[1741445230136,5.50219892,137.66,137.65,23.29727365]
[1741445230305,5.50219892,137.66,137.65,1.61513347]
[1741445230505,5.50219892,137.66,137.65,23.29727365]
[1741445230926,5.50219892,137.66,137.65,1.61513347]
[1741445231125,0.14216157,137.68,137.65,1.61513347]
[1741445231419,0.14216157,137.68,137.65,23.29727365]
[1741445231610,0.14216157,137.69,137.66,21.68214018]
[1741445232729,0.14216157,137.69,137.67,21.68214018]
[1741445232902,0.14216157,137.69,137.68,40.33178904]
[1741445233224,0.14216157,137.75,137.69,7.2626]
[1741445233420,21.82430175,137.75,137.7,21.68214018]
[1741445233626,21.82430175,137.75,137.69,28.94474018]
[1741445234028,0.14216157,137.75,137.7,27.80094018]
[1741445234230,0.14216157,137.75,137.71,21.68214018]
[1741445234445,0.14216157,137.75,137.7,27.80094018]
[1741445234727,0.14216157,137.73,137.7,6.1188]
[1741445234924,21.82430175,137.73,137.7,6.1188]
[1741445235224,0.14216157,137.71,137.67,111.0188]
[1741445235415,29.08590175,137.71,137.67,6.1188]
[1741445237034,0.14216157,137.68,137.65,1.61513347]
[1741445237713,29.08710175,137.69,137.65,1.61513347]
[1741445238018,0.14216157,137.67,137.65,0.01383347]
[1741445238921,0.14216157,137.68,137.65,0.01383347]
[1741445239730,0.14216157,137.66,137.65,0.01383347]
[1741445240306,0.14216157,137.66,137.65,21.69597365]
[1741445240926,0.14216157,137.66,137.65,0.01383347]
[1741445241129,0.03,137.67,137.65,0.01383347]
[1741445242434,0.03,137.67,137.66,21.68214018]
[1741445242623,5.53141522,137.69,137.68,88.53012922]
[1741445242624,5.38925365,137.69,137.68,88.53012922]
[1741445242933,5.53141522,137.69,137.68,193.43012922]
[1741445243134,5.53141522,137.69,137.68,153.09834018]
[1741445243711,5.53141522,137.69,137.68,160.36154018]
[1741445244039,0.14216157,137.69,137.68,160.36154018]
[1741445244239,0.14216157,137.69,137.68,28.19834018]
[1741445244917,0.14216157,137.69,137.68,35.46154018]
[1741445250518,0.14216157,137.69,137.68,13.7794]
[1741445250725,0.14216157,137.69,137.68,54.11118904]
[1741445253146,0.17216157,137.69,137.68,32.42904886]
[1741445253324,0.17216157,137.69,137.68,54.11118904]
[1741445256655,0.17216157,137.69,137.68,35.46154018]
[1741445259256,0.17216157,137.69,137.68,27.64083524]
[1741445259471,6.157e-05,137.69,137.68,27.64083524]
[1741445259764,6.157e-05,137.69,137.68,46.2904841]
[1741445260134,6.157e-05,137.69,137.68,27.64083524]
[1741445262849,6.157e-05,137.69,137.68,21.12463524]
[1741445267872,5.54903099,137.69,137.68,21.12463524]
[1741445269079,0.14222314,137.69,137.68,39.7742841]
[1741445272670,0.14222314,137.69,137.68,144.6742841]
[1741445276877,0.14222314,137.69,137.68,126.02463524]
[1741445277075,0.14222314,137.69,137.68,144.6742841]
[1741445278361,0.14222314,137.69,137.68,144.7072841]
[1741445278570,0.14222314,137.69,137.68,39.8072841]
[1741445279681,5.5658238,137.69,137.68,39.8072841]
[1741445281082,5.5658238,137.69,137.68,0.033]
[1741445281774,5.5658238,137.69,137.68,13.89443524]
[1741445282782,5.5658238,137.69,137.68,0.033]
[1741445293474,5.5658238,137.69,137.68,13.89443524]
[1741445295291,5.5658238,137.69,137.68,21.15763524]
[1741445295477,5.5658238,137.69,137.68,39.8072841]
[1741445296180,5.5658238,137.69,137.68,0.033]
[1741445297076,12.8284238,137.69,137.68,0.033]
[1741445299076,12.0514531,137.69,137.68,0.033]
[1741445300879,25.91288834,137.69,137.68,0.033]
[1741445301070,26.05504991,137.69,137.68,0.033]
[1741445301277,4.93101467,137.69,137.68,0.033]
[1741445302101,12.19361467,137.69,137.68,0.033]
[1741445303300,12.22361467,137.69,137.68,0.033]
[1741445307187,50.14216157,137.67,137.66,0.033]
[1741445307497,64.00359681,137.67,137.66,0.033]
[1741445307694,64.00359681,137.67,137.66,0.0001]
[1741445307997,66.00359681,137.67,137.66,0.0001]
[1741445308204,14.00359681,137.66,137.65,0.01383347]
[1741445308385,95.20359681,137.66,137.65,0.01383347]
[1741445308901,50.0,137.6,137.53,11.13699865]
[1741445309087,0.14216157,137.55,137.53,11.13699865]
[1741445309290,0.14216157,137.55,137.54,13.89443524]
[1741445309679,0.14216157,137.58,137.54,0.033]
[1741445310201,14.00359681,137.55,137.54,0.033]
[1741445310787,0.14216157,137.55,137.54,0.033]
[1741445311486,19.39379714,137.55,137.54,0.033]
[1741445312887,14.00359681,137.55,137.54,0.033]
[1741445313688,20.56359681,137.55,137.54,0.033]
[1741445313896,101.76359681,137.55,137.54,0.033]
[1741445314501,103.58078663,137.55,137.54,0.033]
[1741445315297,138.09898663,137.5,137.49,1e-08]
[1741445315484,138.09898663,137.5,137.43,11.13699865]
[1741445315485,0.14216157,137.45,137.43,11.13699865]
[1741445315906,0.14216157,137.46,137.43,11.13699865]
[1741445316812,0.14216157,137.47,137.43,13.86143524]
[1741445317101,0.14216157,137.47,137.45,13.86143524]
[1741445317313,50.14216157,137.49,137.44,21.73981287]
[1741445317624,71.88197444,137.49,137.44,21.73981287]
[1741445317984,71.88197444,137.49,137.43,35.55141287]
[1741445318491,71.88197444,137.49,137.44,21.73981287]
[1741445319388,0.14216157,137.49,137.45,21.73981287]
[1741445319690,0.14216157,137.49,137.46,21.73981287]
[1741445320287,0.14216157,137.49,137.45,21.73981287]
[1741445321407,0.14216157,137.49,137.46,21.73981287]
[1741445322511,0.14216157,137.49,137.48,21.73981287]
[1741445322709,0.14216157,137.49,137.44,104.9]
[1741445322899,0.14216157,137.49,137.46,21.73981287]
[1741445324306,0.14216157,137.49,137.47,21.73981287]
[1741445324691,0.14216157,137.49,137.46,21.73981287]
[1741445325715,0.14216157,137.49,137.47,21.73981287]
[1741445326294,0.14216157,137.49,137.47,21.77281287]
[1741445328216,0.14216157,137.49,137.47,29.04681287]
[1741445328426,0.14216157,137.49,137.48,21.73981287]
[1741445328805,0.14216157,137.49,137.47,21.77281287]
[1741445329201,0.14216157,137.49,137.48,21.73981287]
[1741445329596,0.14216157,137.52,137.48,21.73981287]
[1741445329803,0.14216157,137.52,137.51,21.73981287]
[1741445330114,0.14216157,137.55,137.51,21.73981287]
[1741445330318,0.14216157,137.55,137.52,21.73981287]
[1741445331309,0.14216157,137.56,137.53,21.73981287]
[1741445332619,0.14216157,137.54,137.5,21.73981287]
[1741445333006,0.14216157,137.54,137.51,21.73981287]
[1741445333623,0.14216157,137.55,137.51,21.73981287]
[1741445334724,7.41256157,137.55,137.51,21.73981287]
[1741445335728,29.15237444,137.55,137.5,21.73981287]
[1741445337224,21.31485967,137.55,137.5,13.9022981]
[1741445338713,71.31485967,137.55,137.5,13.9022981]
[1741445339230,71.34485967,137.55,137.5,13.9022981]
[1741445341917,0.14216157,137.53,137.49,13.9022981]
[1741445342827,0.14216157,137.54,137.5,13.9022981]
[1741445343010,7.41276157,137.54,137.5,13.9022981]
[1741445344253,7.41276157,137.54,137.51,13.9022981]
[1741445344543,7.41276157,137.54,137.5,13.9022981]
[1741445344831,7.41276157,137.54,137.49,13.9022981]
[1741445345632,7.41276157,137.54,137.5,13.9022981]
[1741445346014,7.41276157,137.54,137.48,7.2734]
[1741445346435,7.41276157,137.54,137.49,13.9022981]
[1741445346622,0.14216157,137.52,137.49,13.9022981]
[1741445347019,7.41376157,137.52,137.48,13.9022981]
[1741445349035,7.41486157,137.5,137.47,13.9352981]
[1741445349342,0.14216157,137.5,137.47,13.9352981]
[1741445351128,0.14216157,137.52,137.49,13.9022981]
[1741445351535,0.14216157,137.52,137.47,7.3072]
[1741445351536,0.14216157,137.52,137.48,13.9022981]
[1741445351825,0.14216157,137.52,137.47,0.033]
[1741445352130,0.14216157,137.52,137.48,13.9022981]
[1741445352344,0.14216157,137.52,137.49,13.9022981]
[1741445353847,0.14216157,137.5,137.49,13.9022981]
[1741445354429,0.14216157,137.5,137.48,13.9022981]
[1741445355036,5.51567277,137.49,137.48,13.9022981]
[1741445356151,0.14216157,137.48,137.47,13.9352981]
[1741445358333,5.51567277,137.48,137.47,13.9352981]
[1741445361949,5.51567277,137.48,137.47,21.2095981]
[1741445362334,5.51567277,137.48,137.47,13.9352981]
[1741445363130,5.51567277,137.48,137.47,21.2095981]
[1741445363528,5.51567277,137.48,137.47,126.1095981]
[1741445364040,5.51567277,137.48,137.47,144.75924696]
[1741445364348,0.03,137.55,137.48,18.64964886]
[1741445364554,0.03,137.55,137.53,13.9022981]
[1741445364753,7.3002,137.55,137.51,13.9022981]
[1741445365461,0.03,137.55,137.52,13.9022981]
[1741445366174,0.03,137.55,137.51,13.9022981]
[1741445366464,14.07445967,137.55,137.5,13.9022981]
[1741445366842,0.14216157,137.53,137.49,13.9022981]
[1741445367045,0.14216157,137.52,137.48,13.9022981]
[1741445368166,7.41376157,137.52,137.48,13.9022981]
[1741445369243,7.41376157,137.52,137.47,19.9413981]
[1741445369939,71.31605967,137.52,137.47,13.9352981]
[1741445370244,0.14216157,137.5,137.47,0.033]
[1741445370434,13.54445967,137.51,137.47,0.033]
[1741445371837,7.2727,137.5,137.47,0.033]
[1741445372143,102.3749981,137.5,137.47,0.033]
[1741445372350,13.9022981,137.48,137.47,0.033]
[1741445372554,14.04445967,137.48,137.47,0.033]
[1741445373943,21.31815967,137.48,137.47,0.033]
[1741445379548,7.41586157,137.48,137.47,0.033]
[1741445380358,21.31815967,137.48,137.47,0.033]
[1741445382539,102.51815967,137.48,137.47,0.033]
[1741445388178,176.77700093,137.48,137.47,0.033]
[1741445388876,121.16780853,137.48,137.47,0.033]
[1741445389372,0.14216157,137.44,137.43,0.033]
[1741445389671,20.60445967,137.44,137.43,0.033]
[1741445389972,6.70216157,137.44,137.43,0.033]
[1741445391571,13.97806157,137.44,137.43,0.033]
[1741445393173,6.70216157,137.44,137.43,0.033]
[1741445393479,13.97806157,137.44,137.43,0.033]
[1741445393973,27.88035967,137.44,137.43,0.033]
[1741445394356,109.08035967,137.44,137.43,0.033]
[1741445395974,81.34216157,137.44,137.43,0.033]
[1741445400387,0.14216157,137.44,137.43,0.033]
[1741445401080,14.04445967,137.44,137.43,0.033]
[1741445403279,39.97000853,137.44,137.43,0.033]
[1741445403982,197.65000853,137.44,137.43,0.033]
[1741445404574,179.00035967,137.44,137.43,0.033]
[1741445404879,171.72445967,137.44,137.43,0.033]
[1741445405684,179.00035967,137.44,137.43,0.033]
[1741445407682,260.20035967,137.44,137.43,0.033]
[1741445407886,261.75365967,137.44,137.43,0.033]
[1741445408587,261.75365967,137.44,137.43,0.0001]
[1741445408999,199.20330853,137.44,137.43,0.0001]
[1741445409205,199.20330853,137.44,137.35,6.6505]
[1741445409206,0.14216157,137.39,137.35,6.6505]
[1741445409481,14.04445967,137.39,137.35,6.6505]
[1741445411068,21.32325967,137.39,137.35,6.6505]
[1741445414401,14.04445967,137.37,137.33,0.033]
[1741445414637,0.14216157,137.37,137.33,13.9352981]
[1741445414907,0.14216157,137.37,137.35,13.9022981]
[1741445415194,14.04445967,137.39,137.33,13.9352981]
[1741445415372,14.04445967,137.37,137.33,0.033]
[1741445415563,0.14216157,137.37,137.33,0.033]
[1741445416585,0.14216157,137.38,137.33,21.2166981]
[1741445416892,0.14216157,137.38,137.34,13.9022981]
[1741445417279,0.14216157,137.39,137.34,21.1829981]
[1741445417986,0.14216157,137.39,137.33,0.033]
[1741445418293,21.32315967,137.39,137.33,21.2167981]
[1741445419966,21.32315967,137.39,137.34,13.9022981]
[1741445420594,21.32315967,137.39,137.34,13.4022981]
[1741445420798,7.42086157,137.39,137.34,13.4022981]
[1741445420972,0.14216157,137.39,137.34,20.6833981]
[1741445421178,0.17216157,137.39,137.35,13.9022981]
[1741445422502,0.17216157,137.39,137.34,21.1833981]
[1741445423089,7.45086157,137.39,137.34,21.1833981]
[1741445423998,0.14216157,137.37,137.32,15.4712981]
[1741445424295,0.14216157,137.37,137.34,13.9022981]
[1741445424892,0.14216157,137.38,137.34,13.9022981]
[1741445425094,7.42146157,137.38,137.33,13.9022981]
[1741445425284,21.32375967,137.38,137.32,22.7530981]
[1741445425682,14.04445967,137.36,137.32,1.569]
[1741445425885,14.04445967,137.36,137.31,6.14]
[1741445426075,14.04445967,137.36,137.31,20.0422981]
[1741445426775,14.04445967,137.36,137.31,6.14]
[1741445426994,0.14216157,137.34,137.31,6.14]
[1741445427894,0.14216157,137.34,137.27,4.72247405]
[1741445428086,0.14216157,137.34,137.29,13.9022981]
[1741445428585,0.14216157,137.34,137.3,13.9022981]
[1741445429302,7.42356157,137.34,137.29,13.9022981]
[1741445429596,0.14216157,137.32,137.27,18.17257405]
[1741445429798,14.04445967,137.32,137.27,13.4501]
[1741445430002,14.04445967,137.32,137.27,27.3523981]
[1741445430199,14.04445967,137.32,137.27,20.0675981]
[1741445430703,14.04445967,137.32,137.27,27.3524981]
[1741445431098,14.04445967,137.32,137.27,20.0675981]
[1741445431686,7.2826,137.32,137.27,20.0675981]
[1741445432004,0.14216157,137.31,137.27,20.0675981]
[1741445432592,0.14216157,137.29,137.24,27.3823981]
[1741445432780,0.14216157,137.29,137.25,13.9022981]
[1741445432980,70.4622981,137.31,137.25,13.9022981]
[1741445432981,14.04445967,137.3,137.25,13.9022981]
[1741445433178,0.14216157,137.3,137.25,13.9022981]
[1741445434189,0.14216157,137.3,137.27,0.033]
[1741445434593,21.32775967,137.3,137.27,0.033]
[1741445434899,0.14216157,137.29,137.27,0.033]
[1741445435293,50.14216157,137.29,137.27,0.033]
[1741445435486,64.04445967,137.29,137.27,0.033]
[1741445435897,50.14216157,137.29,137.27,0.033]
[1741445436288,64.04445967,137.29,137.27,0.033]
[1741445437212,14.04445967,137.28,137.27,0.033]
[1741445437412,0.14216157,137.28,137.27,0.033]
[1741445442295,0.14216157,137.28,137.27,7.3179]
[1741445443291,0.14216157,137.28,137.27,0.033]
[1741445444001,0.14216157,137.28,137.27,13.9352981]
[1741445444312,0.14216157,137.28,137.27,21.2201981]
[1741445447824,0.14216157,137.28,137.27,13.9352981]
[1741445448036,0.14216157,137.28,137.27,0.033]
[1741445448195,0.14216157,137.28,137.27,13.9352981]
[1741445448517,0.14216157,137.28,137.27,21.2201981]
[1741445448696,0.14216157,137.28,137.27,13.9352981]
[1741445448893,0.14216157,137.28,137.27,0.033]
[1741445451728,0.14216157,137.28,137.27,13.9352981]
[1741445452310,0.14216157,137.28,137.27,21.2201981]
[1741445453226,0.14216157,137.28,137.27,207.89423936]
[1741445453742,0.14216157,137.28,137.27,152.28504696]
[1741445454509,0.14216157,137.28,137.27,207.89423936]
[1741445454715,0.14216157,137.28,137.27,152.28504696]
[1741445456230,0.14216157,137.28,137.27,207.89423936]
[1741445460413,0.03,137.34,137.27,262.53093936]
[1741445460732,0.03,137.34,137.33,13.9022981]
[1741445461113,0.03,137.34,137.32,13.9022981]
[1741445461329,0.03,137.34,137.31,13.9022981]
[1741445461823,0.03,137.34,137.32,13.9022981]
[1741445463018,0.03,137.34,137.31,13.9022981]
[1741445463331,0.03,137.34,137.33,13.9022981]
[1741445463918,0.03,137.34,137.32,13.9022981]
[1741445464305,0.03,137.34,137.33,13.9022981]
[1741445464920,0.03,137.34,137.32,13.9022981]
[1741445465419,0.03,137.34,137.3,13.9022981]
[1741445466211,0.03,137.34,137.31,13.9022981]
[1741445468135,0.03,137.34,137.32,13.9022981]
[1741445468329,0.03,137.34,137.32,21.1844981]
[1741445468508,0.03,137.34,137.32,13.9022981]
[1741445468713,0.03,137.34,137.31,21.1848981]
[1741445469034,0.03,137.34,137.33,13.9022981]
[1741445470336,0.03,137.34,137.33,21.1839981]
[1741445471353,0.0001,137.34,137.33,181.6931905]
[1741445471512,0.17216157,137.39,137.35,18.64964886]
[1741445471708,0.03,137.39,137.38,13.9022981]
[1741445472165,0.03,137.39,137.36,13.9022981]
[1741445472740,0.03,137.39,137.35,112.1803]
[1741445472741,0.03,137.39,137.35,126.0825981]
[1741445472924,0.03,137.39,137.36,13.9022981]
[1741445473116,0.17216157,137.39,137.34,13.9022981]
[1741445473323,14.07445967,137.39,137.33,13.9022981]
[1741445474553,14.04445967,137.37,137.32,13.9022981]
[1741445475365,14.04445967,137.37,137.31,13.2836]
[1741445475659,0.14216157,137.37,137.32,13.9022981]
[1741445475833,0.14216157,137.37,137.33,13.9022981]
[1741445476133,7.42196157,137.37,137.33,13.9022981]
[1741445476333,7.42196157,137.37,137.32,13.9022981]
[1741445477044,0.14216157,137.38,137.34,13.9022981]
[1741445477444,0.14216157,137.38,137.33,13.9022981]
[1741445477645,14.04445967,137.38,137.33,13.9022981]
[1741445478041,14.04445967,137.36,137.31,13.9022981]
[1741445478244,0.14216157,137.34,137.3,21.1854981]
[1741445478435,0.14216157,137.34,137.32,13.9022981]
[1741445478635,0.14216157,137.37,137.33,13.9022981]
[1741445480861,0.14216157,137.37,137.32,21.1841981]
[1741445481242,0.14216157,137.37,137.33,13.9022981]
[1741445482859,14.04445967,137.37,137.31,0.033]
[1741445483061,0.14216157,137.35,137.31,13.9352981]
[1741445483559,0.14216157,137.35,137.31,0.033]
[1741445483744,0.14216157,137.36,137.32,13.9022981]
[1741445484158,0.14216157,137.36,137.31,13.9352981]
[1741445484662,0.14216157,137.36,137.31,21.2178981]
[1741445485458,0.14216157,137.36,137.32,13.9022981]
[1741445486436,0.14216157,137.36,137.31,21.2178981]
[1741445487259,0.14216157,137.36,137.32,13.9022981]
[1741445487454,0.17216157,137.37,137.32,13.9022981]
[1741445487653,0.17216157,137.37,137.33,13.9022981]
[1741445488358,0.17216157,137.37,137.33,21.1837981]
[1741445488866,0.17216157,137.37,137.33,7.2815]
[1741445489460,0.17216157,137.37,137.32,21.1843981]
[1741445489966,0.17216157,137.37,137.33,13.9022981]
[1741445490276,0.03,137.37,137.36,13.9022981]
[1741445490479,0.03,137.37,137.34,13.9022981]
[1741445490645,0.03,137.37,137.33,13.9022981]
[1741445490963,0.17216157,137.37,137.32,13.9022981]
[1741445491672,0.17216157,137.37,137.33,13.9022981]
[1741445491976,0.03,137.37,137.31,25.5225]
[1741445492171,0.03,137.37,137.34,13.9022981]
[1741445492370,0.03,137.37,137.33,13.9022981]
[1741445492669,0.03,137.37,137.32,13.9022981]
[1741445492878,0.03,137.37,137.31,13.9352981]
[1741445492879,0.14216157,137.36,137.31,13.9352981]
[1741445493043,64.04445967,137.36,137.31,0.033]
[1741445494450,0.14216157,137.34,137.31,0.033]
[1741445499670,0.14216157,137.35,137.31,0.033]
[1741445499877,7.42276157,137.35,137.31,0.033]
[1741445500474,21.32505967,137.35,137.31,0.033]
[1741445501789,7.42276157,137.35,137.31,0.033]
[1741445501996,14.04445967,137.33,137.31,0.033]
[1741445502361,81.34216157,137.32,137.31,0.033]
[1741445502586,145.24445967,137.32,137.31,0.033]